Cogmind - Beta 15 @@@ ROGUE MODE // 2025.08.07 @ 20:12:46 Player: Endlessblaze Result: Destroyed by G-34 Mercenary with Small Laser Performance ------------- Evolutions (1) 500 Regions Visited (2) 400 Robots Destroyed (47) 235 Value Destroyed (1224) 1224 Prototype IDs (2) 40 Alien Tech Used (0) 0 Bonus (0) 0 TOTAL SCORE: 2399 Bonus ------- None Cogmind --------- Core Integrity 0/400 Matter 300/300 Energy 173/265 System Corruption 0% Temperature Cool (6) Movement Core (200) Ox3 Location -9/Materials Parts ------- > --- POWER (1) -------- Improved Ion Engine > --- PROPULSION (2) --- (None) > --- UTILITY (4) ------ Signal Interpreter Transport Network Coupler ECM Suite > --- WEAPON (2) ------- Scythe > --- INVENTORY (5) ---- Flight Unit Cooling System Terrain Scanner Improved Medium Laser Datajack Peak State ------------ > --- POWER ------------ Improved Ion Engine > --- PROPULSION ------- VTOL Module VTOL Module > --- UTILITY ---------- Sensor Array Signal Interpreter Transport Network Coupler ECM Suite > --- WEAPON ----------- Improved Medium Laser Scythe > --- INVENTORY -------- Flight Unit Cooling System Terrain Scanner EMP Blaster [Rating: 16] Favorites ----------- Power Ion Engine Engine Ion Engine Power Core Light Nuclear Core Propulsion Aluminum Leg Leg Aluminum Leg Hover Unit Backup Propulsion I Flight Unit VTOL Module Utility Seismic Detector Device Seismic Detector Processor Signal Interpreter Protection Power Shielding Weapon Rocket Launcher Energy Gun Improved Medium Laser Energy Cannon Advanced Beam Cannon Ballistic Gun Assault Rifle Ballistic Cannon Light Cannon Launcher Rocket Launcher Slashing Weapon Scythe Build | -11 -10 -9 ------- Run | Yrd Mat Mat Slots Evolved 2 | . . 2 Power . | . . . Propulsion . | . . . Utility 2 | . . 2 Weapon . | . . . Parts Attached 36 | 7 5 24 Power 7 | 1 1 5 Engine 6 | 1 . 5 Core 1 | . 1 . Reactor . | . . . Propulsion 9 | 2 1 6 Treads . | . . . Leg 3 | 2 1 . Wheel . | . . . Hover . | . . . Flight 6 | . . 6 Utility 9 | 2 1 6 Device 5 | 2 . 3 Storage . | . . . Processor 2 | . . 2 Hackware . | . . . Protection 2 | . 1 1 Artifact . | . . . Weapon 11 | 2 2 7 Energy Gun 3 | . . 3 Energy Cannon 1 | . . 1 Ballistic Gun 2 | 2 . . Ballistic Cannon 1 | . 1 . Launcher 2 | . 1 1 Special Weapon . | . . . Impact Weapon . | . . . Slashing Weapon 2 | . . 2 Piercing Weapon . | . . . Special Melee Weapon . | . . . Unidentified Prototypes 2 | . . 2 Parts Lost 15 | . 1 14 Power 2 | . . 2 Propulsion 5 | . . 5 Utility 4 | . 1 3 Weapon 4 | . . 4 Highest Loss Streak 4 | . 1 4 To Critical Strikes . | . . . Average Backups 4 | . 4 4 Power . | . . . Propulsion . | . . . Utility 3 | . 3 2 Weapon . | . . 1 Tool/Special . | . . . Unused Backups 9 | . 3 6 Power . | . . . Propulsion 2 | . 1 1 Utility 5 | . 2 3 Weapon 1 | . . 1 Tool/Special 1 | . . 1 Average Slot Usage (%) 92 | . 98 85 Engine 9 | . 10 8 Core 2 | . 3 . Leg 16 | . 28 4 Flight 5 | . . 11 Device 18 | . 18 17 Processor 9 | . . 20 Protection 7 | . 8 5 Energy Gun 1 | . . 3 Ballistic Gun 3 | . 6 . Ballistic Cannon 5 | . 9 . Launcher 6 | . 11 1 Slashing Weapon 4 | . . 9 Peak Build Rating 16 | 9 10 16 Average Rating 10 | 6 8 12 On Entrance 6 | . 9 10 Naked Turns . | . . . Heaviest Build 15 | 11 14 15 Greatest Support 20 | 20 20 20 Greatest Overweight (x) 4 | . 1 4 Average Overweight (x) . | . . 1 Largest Inventory Capacity 5 | 5 5 5 Average Capacity 5 | 5 5 5 Most Carried 5 | . 5 5 Average Carried 4 | . 4 4 Final Capacity 5 | 5 5 5 Final Carried 5 | . 5 5 Class Distribution -------------------- 65% | Mutant 25% | Assassin 6% | Scavenger-Assassin Dominant Class ---------------- Mutant | -10/Materials Assassin | -9/Materials Resources | -11 -10 -9 ----------- Run | Yrd Mat Mat Matter Collected 976 | 159 316 501 Remotely . | . . . Salvage Created 1269 | 39 397 833 Parts 86 | 6 28 52 Haulers Intercepted 1 | . . 1 Recyclers Shooed 1 | 1 . . Parts Field Recycled . | . . . Retrieved Matter . | . . . Parts Self-Destructed . | . . . Prevented . | . . . Kills | -11 -10 -9 ------- Run | Yrd Mat Mat Combat Hostiles Destroyed 37 | . 13 24 Melee 19 | . . 19 Guns 2 | . 1 1 AOE 16 | . 12 4 Classes Destroyed 11 | 1 7 3 Worker 2 | . 2 . Builder 1 | . 1 . Tunneler 2 | 2 . . Hauler 1 | . . 1 Recycler 1 | . 1 . Operator 1 | . 1 . Watcher 2 | . 2 . Swarmer 13 | . 6 7 Grunt 16 | . 7 9 Duelist 2 | . . 2 Sentry 6 | . . 6 Best Kill Streak 5 | 1 5 4 Combat Bots Only 4 | . 3 4 Max Kills in Single Turn 3 | 1 3 1 Gunslinging . | . . . Exploded 3 | . 3 1 Melee 1 | . . 1 Uniques/NPCs Destroyed . | . . . Combat | -11 -10 -9 -------- Run | Yrd Mat Mat Hostile Shots Fired 166 | . 21 145 Missed 43 | . 5 38 Hits 123 | . 16 107 Melee 1 | . . 1 Projectile 122 | . 16 106 AOE 1 | . . 1 Critical Strikes 5 | . . 5 Damage Taken 1672 | . 399 1273 Core 451 | . 44 407 Absorbed by Shields . | . . . Redirected to Shielding 14 | . . 14 Regen/Repaired (Parts) 46 | . 46 . Core Remaining (%) 91 | 100 82 . Volleys Fired 52 | 6 23 23 Largest 2 | 2 2 1 Hottest 63 | 40 63 56 Shots Fired 65 | 12 30 23 Gun 22 | 12 6 4 Cannon 4 | . 4 . Launcher 39 | . 20 19 Special . | . . . Kinetic 22 | 12 10 . Thermal 4 | . . 4 Explosive 32 | . 20 12 Electromagnetic 7 | . . 7 Robot Hit Streak 10 | 3 2 10 Robot Miss Streak 3 | 2 3 2 Penetration Max . | . . . Secondary Targets . | . . . Shots Hit Robots 65 | 6 7 52 Core Hits 59 | 2 23 34 Critical Kills . | . . . Critical Parts Destroyed . | . . . Critical Strikes 3 | . . 3 Burn 1 | . . 1 Sever 2 | . . 2 Melee Attacks 57 | . . 57 Impact . | . . . Slashing 57 | . . 57 Piercing . | . . . Sneak Attacks 1 | . . 1 Combat Hostiles . | . . . Follow-up Attacks . | . . . Damage Inflicted 2963 | 87 1017 1859 Guns 200 | 87 44 69 Cannons . | . . . Explosions 1503 | . 973 530 Melee 1260 | . . 1260 Ramming . | . . . Kinetic 131 | 87 44 . Thermal 69 | . . 69 Explosive 1296 | . 973 323 Electromagnetic 207 | . . 207 Impact . | . . . Slashing 1260 | . . 1260 Piercing . | . . . Highest Corruption . | . . . Average Corruption . | . . . Corruption Purged . | . . . Corruption Blocked . | . . . Overload Shots . | . . . Overflow Damage 104 | . 27 77 Projectiles . | . . . Explosions 32 | . 27 5 Melee 72 | . . 72 Knockbacks . | . . . Impact . | . . . Kinetic . | . . . Secondary . | . . . Self-Inflicted Damage 245 | . 237 8 Shots 8 | . 6 2 Rammed . | . . . Targets Rammed . | . . . Kicked . | . . . Crushed . | . . . Highest Temperature 195 | . 48 195 Average Temperature 34 | . 20 45 Received Heat Transfer 480 | . 54 426 Siege Activations . | . . . Martial Activations . | . . . Shielding Activations . | . . . Robots Disrupted . | . . . Combat Hostiles . | . . . Robots Corrupted . | . . . Combat Hostiles . | . . . Parts Fried . | . . . Impact Corruptions . | . . . Robots Melted . | . . . Combat Hostiles . | . . . Parts Melted . | . . . Heat Transferred 222 | . . 222 Parts Sabotaged . | . . . Parts Stolen . | . . . Parts Stripped . | . . . Power Chain Reactions . | . . . Alert | -11 -10 -9 ------- Run | Yrd Mat Mat Maximum Alert Level 1 | . 1 1 Low Security (%) 59 | 100 67 44 Level 1 40 | . 32 55 Level 2 . | . . . Level 3 . | . . . Level 4 . | . . . Level 5 . | . . . High Security . | . . . Max Security . | . . . Peak Influence 380 | 5 380 311 Initial 156 | . . 156 Average 151 | . 119 211 Influence Increases 1448 | 10 685 753 Destroy 0b10 Robot/C 740 | . 260 480 Destroy 0b10 Robot/NC 50 | 10 35 5 Destroy Leader 186 | . 54 132 Successful Hack 30 | . 13 17 Disable Machine 105 | . 90 15 Destroy Structure 262 | . 188 74 Lose Combat Pursuer 75 | . 45 30 Influence Decreases 1275 | 10 313 952 Entered New Map 216 | . . 216 Time Decay 759 | 10 303 446 Lost Part 150 | . 10 140 Purge Threat 150 | . . 150 Squads Dispatched 4 | . 1 3 Investigation 3 | . 1 2 Extermination . | . . . Reinforcement 1 | . . 1 Assault . | . . . Garrison . | . . . Intercept . | . . . Searches Triggered . | . . . Construction Impeded . | . . . Haulers Reinforced . | . . . Active Scanning Responses . | . . . Cargo Convoy Interrupts . | . . . Stealth | -11 -10 -9 --------- Run | Yrd Mat Mat Distress Signals 4 | . . 4 Communications Jammed . | . . . Distress Signals . | . . . Times Spotted 63 | . 19 44 Peak Tracking Total 5 | . 4 5 Tactical Retreats 3 | . 1 2 Traps | -11 -10 -9 ------- Run | Yrd Mat Mat Traps Triggered 2 | . 2 . Indirectly . | . . . Trap Hack Attempts . | . . . Triggered . | . . . Disarmed . | . . . Reprogrammed . | . . . Reused . | . . . Traps Extracted . | . . . Installed . | . . . Triggered . | . . . Machines | -11 -10 -9 ---------- Run | Yrd Mat Mat Machines Disabled 7 | . 6 1 Max in Single Turn 2 | . 2 1 Machines Repaired . | . . . Machines Dismantled . | . . . Machines Sabotaged . | . . . Overloaded Fab Kills . | . . . Hacking | -11 -10 -9 --------- Run | Yrd Mat Mat Machines Accessed 18 | . 8 10 Terminals 12 | . 6 6 Fabricators . | . . . Repair Stations 3 | . 1 2 Recycling Units 3 | . 1 2 Scanalyzers . | . . . Garrison Access . | . . . Total Hacks 53 | . 21 32 Successful 28 | . 11 17 Failed 25 | . 10 15 Catastrophic 2 | . . 2 Database Lockouts . | . . . Manual 24 | . 13 11 Terminals 38 | . 15 23 Fabricators . | . . . Repair Stations 7 | . 2 5 Recycling Units 8 | . 4 4 Scanalyzers . | . . . Garrison Access . | . . . Terminal Hacks 13 | . 3 10 Record 1 | . 1 . Robot Analysis 2 | . . 2 Branch Access Points 2 | . 1 1 Alert Level 2 | . . 2 Unreport Threat 1 | . . 1 Locate Traps 2 | . . 2 Dispatch Records 1 | . . 1 Maintenance Status 1 | . 1 . Investigation Status 1 | . . 1 Fabricator Hacks . | . . . Repair Station Hacks 3 | . 2 1 Scan Component 1 | . 1 . Repair 1 | . 1 . Refit 1 | . . 1 Recycling Unit Hacks 5 | . 2 3 Report Inventory 3 | . 1 2 Retrieve Components 2 | . 1 1 Scanalyzer . | . . . Garrison Access Hacks . | . . . Unauthorized Hacks 7 | . 4 3 Terminals 7 | . 4 3 Botnet 7 | . 4 3 Fabricators . | . . . Repair Stations . | . . . Recycling Units . | . . . Scanalyzers . | . . . Garrison Access . | . . . Data Cores Recovered . | . . . Used . | . . . Hacking Detections 16 | . 7 9 Full Trace Events 3 | . 1 2 Feedback Events . | . . . Feedback Blocked . | . . . Robot Schematics Acquired . | . . . Robots Built . | . . . Authchips . | . . . Time . | . . . Total Robot Build Rating . | . . . Part Schematics Acquired . | . . . Parts Built . | . . . Authchips . | . . . Time . | . . . Total Part Build Rating . | . . . Parts Repaired 1 | . 1 . Time 32 | . 32 . Parts Recycled . | . . . Recycled Matter . | . . . Retrieved Matter . | . . . Retrieved Components 7 | . 1 6 Parts Scanalyzed . | . . . Part Schematics Acquired . | . . . Parts Damaged . | . . . Bothacking | -11 -10 -9 ------------ Run | Yrd Mat Mat Used RIF Installer . | . . . Robots Hacked . | . . . Non-combat . | . . . Combat . | . . . Robot Hacks Applied . | . . . Relay Couplers Released . | . . . Fabnet Peak Effective % . | . . . Robots Rewired . | . . . Allies Hacked . | . . . Hacks Repelled . | . . . Allies | -11 -10 -9 -------- Run | Yrd Mat Mat Total Allies . | . . . Largest Group . | . . . Highest-Rated Group . | . . . Highest-Rated Ally . | . . . Total Orders . | . . . Ally Attacks . | . . . Total Damage . | . . . Kills . | . . . Allies Corrupted . | . . . Allies Melted . | . . . Intel | -11 -10 -9 ------- Run | Yrd Mat Mat Active Infowar (turns) 2395 | 65 1285 1045 Sensors 562 | . . 562 Terrain 488 | 65 423 . Seismic 1424 | 65 1285 74 T.N.C. 919 | . . 919 ECM 570 | . . 570 Robot Analysis Total 2 | . . 2 Derelict Logs Recovered . | . . . Drone Launches . | . . . Drone Recoveries . | . . . Exploration | -11 -10 -9 ------------- Run | Yrd Mat Mat Turns Passed 2563 | 168 1285 1110 Spaces Moved 1534 | 73 864 597 Core 70 | 8 . 62 Treads . | . . . Legs 995 | 65 864 66 Wheels . | . . . Hover 55 | . . 55 Flight 414 | . . 414 Fastest Speed 37 | 50 120 37 Average Speed 125 | 112 120 135 Slowest Speed 275 | 120 190 275 Overloaded Moves . | . . . Propulsion Burnouts . | . . . Robots Hopped . | . . . Potential Cave-ins . | . . . Cave-ins Triggered . | . . . Exploration Rate (%) 54 | 4 83 75 Regions Visited 2 Branch Regions . Pre-discovered Areas . | . . . Known Exits Taken . | . . . Unknown Exits Taken 2 | 1 1 . Scrap Searched . | . . . Spaces Dug 36 | . 24 12 Terrain Destroyed 330 | . 235 95 Melee . | . . . Projectile . | . . . AOE 330 | . 235 95 Terrain Rammed . | . . . Walls Destroyed . | . . . Machines Disabled . | . . . Actions | -11 -10 -9 --------- Run | Yrd Mat Mat Total 2016 | 143 1080 793 Wait 298 | 58 172 68 Move 1532 | 72 863 597 Hop . | . . . Pick Up 17 | . 9 8 Fast Attach 24 | 7 4 13 Attach 5 | . . 5 Detach . | . . . Swap 10 | . 3 7 Drop 21 | . 6 15 Fire 52 | 6 23 23 Melee 57 | . . 57 Ram . | . . . Kick . | . . . Crush . | . . . Escape Stasis . | . . . Rewire . | . . . Trap . | . . . Miscellaneous . | . . . Route ------- -11/Scrapyard -10/Materials (discovered 3 exits: *Mat x2 / Min) -9/Materials (discovered 2 exits: [*Mat] / *Min) History --------- Turn | Location | Event 12 | -11/Scrapyard | Discovered new exit (range 16) 169 | -11/Scrapyard | Entered Materials 254 | -10/Materials | Discovered new exit (range 10) 303 | -10/Materials | Build established: Mutant 728 | -10/Materials | Repaired Rocket Launcher 1352 | -10/Materials | Identified exit to Mines 1393 | -10/Materials | Discovered new exit (range 11) 1454 | -10/Materials | Entered another Materials area 1454 | -9/Materials | Evolved 2 slots: Utility x2 1568 | -9/Materials | Lost 4 parts (1p1u2w) 1919 | -9/Materials | Discovered new exit (range 16) 2025 | -9/Materials | Lost 3 parts (1n1u1w) 2081 | -9/Materials | Identified exit to Mines 2235 | -9/Materials | Build established: Assassin 2345 | -9/Materials | Core integrity fell below 50% 2534 | -9/Materials | Core integrity fell below 20% 2564 | -9/Materials | Destroyed by G-34 Mercenary with Small Laser Last Messages --------------- process was centralized in Complex 0b10. Derelicts seem to have modified decomposers to break down even whole components. ALERT: Suspicious activity at Terminal M010. Dispatching Investigation squad. Material Compactor disabled. Sensor Array destroyed. Y-45 Defender destroyed. Door malfunctions. Y-45 Defender destroyed. Y-45 Defender IFF system glitched. Door malfunctions. VTOL Module destroyed. Acquired 29 matter. U-05 Engineer repairs door. U-05 Engineer lays Concrete. G-34 Mercenary Aluminum Leg severed. U-05 Engineer lays Concrete. EMP Blaster destroyed. U-05 Engineer lays Concrete. Map ----- +----------------------------------------------------+ | ???????????????????????????????? | | ???????????????????????????????? | | ???????????????????????????????? | | ???????????????????????????????? | | ??????????????????????#########? | | ??????????????????????# #? | | ??????????????????????# #? | | ??????????????????????# #? | | ??????????????????????# #? | | ??????????????????????# #? | | ??????????????????????# #? | | ??????????????????????# #? | | ??????????????????????# #? | | ??????????????????????# #? | | ??????????????????????# #? | | ???????????????######## ## | | ???????????????# ######/### | | ???????????????# " | | ???????????????# "T | | ???????????????# | | ???????????????# ##+####### | | ??????########### ## ?##### | | ??????# # ## ## | | ??????# """ # ## ## | | ??????# """" + ## ## | | ?????##@" " # ## ## | | ?????#gg" # ## ## " | | ?????## Y #%= ## ## " | | ??????# %[u u +![ ## ## " | | ??????# [ ! ### ## ## | | ??????###########??/###########? | | ??????????????????? #??????????? | | ??????????????????? #??????????? | | ??????????????????? #??????????? | | ??????????????????? #??????????? | | ????????????????????#??????????? | | ???????????????????????????????? | | ???????????????????????????????? | | ???????????????????????????????? | | ???????????????????????????????? | | ???????????????????????????????? | | ???????????????????????????????? | | ???????????????????????????????? | | ???????????????????????????????? | | ???????????????????????????????? | | ???????????????????????????????? | | ???????????????????????????????? | | ???????????????????????????????? | | ???????????????????????????????? | | ???????????????????????????????? | +----------------------------------------------------+ Best States ------------- Heat Dissipation 28 Energy Generation 14 Energy Capacity 265 Matter Stores 300 Matter Capacity 300 Sight Range 16 Robot Scan Range 14 Terrain Scan Range 16 Terrain Scan Density 10 ECM Strength 1 Armor Coverage 150 Power Shielding 33 Evasion (%) 62 Item Schematics ----------------- None Robot Schematics ------------------ None Fabricated ------------ Nothing Repaired ---------- Rocket Launcher | 34% | -10/Materials Alien Tech Used ----------------- None Achievements -------------- None Challenges ------------ None Game ------ Seed CryofiberSupercompositeLog Manual? 0 Play Time 00:32:14 Cumulative 17.7 hours Start 2025.08.07 @ 19:40:20 End 2025.08.07 @ 20:12:46 Sessions 1 Manual Loads 0 Difficulty Rogue Special Mode None Game No. 23 Rogue 23 Adventurer 0 Explorer 0 Win Type - Total 0 Types 0/0/0/0/0/0/0/0/0/0 Lore% 23 Gallery% 20 Achievement% 21 Wizard Run 0 Options --------- Layout 1 ASCII 0 Keyboard 0 Movement Arrows Keybinds 0 Fullscreen 1 Font 16/SmallcapsGlow Map View 55x38 Zoom Use 0% Tactical HUD 0 Map Filters NONE Filters NONE Steam 1 RUN: 5c12b708-efcf-49dc-bc6a-7aa78be5d341